bitfinex/quotes_ETHUSD_20240811
["timestamp","ask_amount","ask_price","bid_price","bid_amount"]
[1723408085761,9.0462,2565.6,2565.3,2.7287]
[1723408086607,9.0462,2565.6,2565.5,2.72851]
[1723408086920,2.72798,2566.0,2565.4,2.80648697]
[1723408087207,9.0462,2566.1,2565.4,2.72853]
[1723408087372,9.0462,2566.1,2565.4,3.001383]
[1723408087578,9.0462,2566.1,2565.5,2.72844]
[1723408087991,9.0462,2566.1,2565.4,3.001383]
[1723408087992,11.77415,2566.1,2565.4,3.001383]
[1723408088564,9.0462,2566.1,2565.5,2.72849]
[1723408089704,11.77414,2566.1,2565.5,2.72849]
[1723408090224,2.72736,2566.6,2564.2,9.6764]
[1723408090225,9.6985,2565.4,2564.2,9.6764]
[1723408090366,0.07784779,2565.3,2564.9,2.72907]
[1723408090865,9.6985,2565.4,2565.2,2.72882]
[1723408091062,9.6985,2565.4,2565.3,3.274492]
[1723408091301,9.6985,2565.4,2564.9,2.72908]
[1723408091463,9.6985,2565.4,2565.1,2.72886]
[1723408091873,9.6985,2565.4,2564.9,2.7291]
[1723408092076,9.6985,2565.4,2564.7,2.72932]
[1723408092077,9.6985,2565.4,2564.7,2.72928]
[1723408092322,9.6985,2565.4,2565.1,2.72893]
[1723408092614,9.6985,2565.4,2565.0,2.72903]
[1723408092914,9.6985,2565.4,2565.1,0.272903]
[1723408093280,9.6985,2565.7,2565.1,2.72885]
[1723408093622,9.6985,2565.7,2565.1,5.45772]
[1723408093623,12.42681,2565.7,2565.1,5.45772]
[1723408093777,12.42681,2565.7,2565.1,2.72885]
[1723408093983,9.6985,2565.7,2565.1,0.62375425]
[1723408094291,9.6985,2566.1,2565.5,2.72844]
[1723408094503,9.6985,2566.1,2565.1,2.72888]
[1723408094504,2.80589779,2566.0,2565.1,2.72888]
[1723408094810,2.80589779,2566.0,2564.9,3.0]
[1723408094811,2.72819,2565.8,2565.2,2.72883]
[1723408095019,2.80603779,2565.8,2565.3,0.272883]
[1723408095181,0.07784779,2565.8,2565.3,0.272883]
[1723408095512,9.6985,2565.9,2565.4,0.07795754]
[1723408095683,9.6985,2565.9,2565.4,5.53501754]
[1723408096017,9.6985,2565.9,2565.5,0.58079005]
[1723408096515,9.6985,2565.9,2565.4,5.45708]
[1723408097581,0.07784779,2565.8,2564.9,2.72906]
[1723408097780,3.816,2566.3,2564.6,2.72939]
[1723408097781,9.6985,2565.3,2564.6,2.72939]
[1723408098026,0.07784779,2565.2,2564.6,2.72939]
[1723408098223,9.6985,2565.3,2564.8,2.72921]
[1723408098581,9.6985,2565.3,2564.6,2.72942]
[1723408098582,2.80673779,2565.2,2564.6,2.72942]
[1723408098796,5.53566779,2565.2,2564.6,3.275325]
[1723408098996,2.80673779,2565.2,2564.6,3.275325]
[1723408099537,9.6985,2565.3,2564.7,2.72929]
[1723408099731,0.07784779,2565.2,2564.6,3.275325]
[1723408100027,2.72909,2565.0,2564.4,2.72961]
[1723408100194,12.42766,2564.9,2564.2,2.72984]
[1723408100526,9.77634779,2564.8,2564.2,2.72988]
[1723408100742,6.54454,2565.5,2564.1,0.1235917]
[1723408100743,9.6985,2565.2,2564.7,2.72936]
[1723408101020,0.07784779,2565.1,2564.5,2.72952]
[1723408101236,2.80679779,2565.1,2564.3,2.72972]
[1723408101588,2.80679779,2565.1,2564.3,5.45943]
[1723408101785,2.72904,2565.0,2564.3,5.4594]
[1723408101989,2.72904,2565.0,2564.4,0.54594]
[1723408102191,2.72904,2565.0,2564.3,2.72969]
[1723408102409,0.07784779,2564.9,2564.1,2.8535317]
[1723408102616,0.07784779,2565.0,2564.4,2.72961]
[1723408102799,0.07784779,2565.0,2564.5,0.272961]
[1723408103337,2.72916,2564.9,2564.5,0.272961]
[1723408103640,2.72942,2564.7,2564.1,2.8535217]
[1723408103941,9.77634779,2564.8,2564.2,2.72987]
[1723408103942,9.6985,2564.8,2564.2,2.72987]
[1723408104156,12.42814,2564.5,2564.1,0.1235917]
[1723408104303,2.80754779,2564.4,2564.1,0.1235917]
[1723408105343,2.72989,2564.2,2564.1,0.1235917]
[1723408105500,15.15828,2564.2,2564.1,0.1235917]
[1723408105698,15.23612779,2564.2,2564.1,0.1235917]
[1723408105904,9.6985,2564.2,2564.1,0.1235917]
[1723408106132,2.72922,2564.9,2564.1,5.5835917]
[1723408106405,12.42776,2564.8,2564.2,0.07798302]
[1723408106725,12.42776,2564.8,2564.2,0.55835917]
[1723408106726,0.07784779,2564.7,2564.2,0.55835917]
[1723408106926,0.07784779,2564.7,2564.1,0.1235917]
[1723408107299,2.72954,2564.6,2564.1,0.1235917]
[1723408107505,9.6985,2564.4,2564.1,0.1235917]
[1723408108136,15.15828,2564.2,2564.1,0.1235917]
[1723408108349,12.42839,2564.2,2564.1,0.1235917]
[1723408108702,15.15828,2564.2,2564.1,0.1235917]
[1723408109106,14.59048,2564.2,2564.1,0.1235917]
[1723408109315,2.73031,2563.9,2562.5,5.16964075]
[1723408109501,2.73061,2563.6,2562.6,0.07803549]
[1723408109734,2.73001,2564.1,2562.5,5.16966075]
[1723408109735,2.73099,2563.2,2562.5,5.16966075]
[1723408109915,2.80899779,2563.1,2562.5,2.43801075]
[1723408110105,2.73119,2563.0,2562.5,2.95500185]
[1723408110303,2.80903779,2563.0,2562.5,2.43801075]
[1723408110509,9.1307,2563.2,2562.5,2.43801075]
[1723408110763,9.1307,2563.9,2562.5,5.16966075]
[1723408110933,2.73077,2563.4,2562.6,3.63011608]
[1723408111138,2.80847779,2563.6,2562.8,2.73134]
[1723408111569,0.07784779,2563.6,2562.6,0.89856608]
[1723408111772,2.72965,2564.5,2563.7,2.73037]
[1723408111940,2.72965,2564.5,2562.8,13.4675]
[1723408111941,9.1307,2564.1,2563.6,0.07800654]
[1723408112141,9.1307,2564.1,2563.5,2.73064]
[1723408112350,9.1307,2564.1,2563.6,0.07800541]
[1723408112677,9.1307,2564.6,2564.0,2.73]
[1723408113184,2.80750779,2564.5,2563.7,2.73042]
[1723408113364,2.72979,2564.3,2563.6,2.73052]
[1723408113675,2.80776779,2564.2,2563.7,3.0]
[1723408113876,11.8607,2564.1,2563.5,3.0]
[1723408114052,9.1307,2564.1,2563.5,3.0]
[1723408114386,9.1307,2564.1,2563.8,2.73023]
[1723408114584,9.1307,2564.3,2563.8,0.28082367]
[1723408114883,11.86049,2564.3,2563.5,2.7306]
[1723408115177,2.73008,2564.1,2563.3,5.73081]
[1723408115343,2.80796779,2564.0,2563.4,4.268971]
[1723408115675,2.72992,2564.2,2563.5,3.0]
[1723408115676,2.80776779,2564.2,2563.5,3.0]
[1723408115878,9.1307,2564.7,2563.6,3.89401156]
[1723408116066,9.1307,2564.7,2564.2,2.72988]
[1723408116266,9.1307,2564.7,2564.1,2.80788721]
[1723408116470,9.1307,2564.7,2564.1,0.07798721]
[1723408116658,9.1307,2564.7,2563.8,2.73028]
[1723408116659,0.07784779,2564.6,2563.8,2.73023]
[1723408116856,9.1307,2564.7,2563.9,3.0]
[1723408117068,2.72876,2565.3,2564.6,2.72946]
[1723408117069,9.1307,2565.0,2564.6,2.72946]
[1723408117270,0.4074108,2566.0,2564.7,2.80727112]
[1723408117271,2.72864,2565.4,2564.7,2.80727112]
[1723408117471,9.20854779,2565.3,2564.6,2.72945]
[1723408117651,0.07784779,2565.2,2564.6,2.72945]
[1723408118089,2.80667779,2565.2,2564.4,5.45927]
[1723408118390,2.72824,2565.8,2565.0,2.72896]
[1723408118391,2.72827,2565.8,2565.0,2.72896]
[1723408118690,9.1307,2566.1,2565.1,0.07796416]
[1723408118691,2.72798,2566.0,2565.1,0.07796416]
[1723408118845,9.1307,2566.1,2565.4,2.7286]
[1723408119045,10.354708,2566.1,2565.4,2.7286]
[1723408119249,10.354708,2566.1,2565.2,2.72879]
[1723408119507,2.72805,2566.0,2565.3,3.07795384]
[1723408119687,10.354708,2566.1,2565.4,2.72855]
[1723408119996,9.1307,2566.1,2565.8,2.72816]
[1723408120371,9.1307,2566.1,2565.3,3.0]
[1723408120372,0.07784779,2566.0,2565.3,3.0]
[1723408120573,2.7282,2565.8,2565.3,3.0]
[1723408120775,9.1307,2566.1,2565.4,0.07795333]
[1723408120983,9.1307,2566.1,2565.6,2.72833]
[1723408121489,9.1307,2566.1,2565.7,0.07794472]
[1723408121784,9.1307,2566.5,2565.8,2.7281]
[1723408122028,9.1307,2566.5,2566.2,2.72767]
[1723408122161,9.1307,2566.9,2566.4,2.72752]
[1723408122348,9.1307,2566.9,2566.2,2.72767]
[1723408122349,11.18345757,2566.9,2566.2,2.72767]
[1723408122548,11.18345757,2566.9,2566.0,2.72792]
[1723408122549,2.80497779,2566.8,2566.0,5.45582]
[1723408122762,11.18345757,2566.9,2565.9,3.0]
[1723408122763,0.07784779,2566.7,2566.1,3.0]
[1723408122992,2.72741,2566.6,2565.9,5.72808]
[1723408123189,2.72741,2566.6,2565.9,5.72801]
[1723408123190,0.07784779,2566.5,2565.9,5.72801]
[1723408123603,0.07784779,2566.6,2566.0,2.72796]
[1723408123803,9.1307,2566.9,2566.3,2.72758]
[1723408124104,9.1307,2566.9,2566.5,2.72737]
[1723408124413,20.0,2567.0,2566.7,2.72716]
[1723408124599,20.0,2567.0,2566.8,2.80504024]
[1723408124767,20.0,2567.0,2566.9,2.72702]
[1723408125097,20.0,2567.0,2566.7,2.72716]
[1723408125299,20.0,2567.0,2566.7,2.72722]
[1723408125503,20.0,2567.0,2566.8,2.80494843]
[1723408125809,20.0,2567.0,2566.9,2.72702]
[1723408125983,20.0,2567.0,2566.8,2.80493843]
[1723408126179,20.0,2567.0,2566.8,2.72703]
[1723408126398,20.0,2567.0,2566.7,0.07790787]
[1723408126593,20.0,2567.0,2566.7,3.07790787]
[1723408126907,20.0,2567.0,2566.9,5.45404]
[1723408127111,20.0,2567.0,2566.9,5.72702]
[1723408127310,20.0,2567.0,2566.9,3.0]
[1723408127472,20.0,2567.0,2566.8,3.0]
[1723408127869,22.0,2567.0,2566.3,2.72759]
[1723408128068,22.0,2567.0,2566.4,5.72747]
[1723408128768,24.72692,2567.0,2566.4,5.72747]
[1723408128970,2.55053979,2566.9,2566.2,2.72768]
[1723408129206,22.0,2567.0,2566.4,2.72745]
[1723408130179,22.0,2567.0,2565.9,13.60675]
[1723408130180,2.72741,2566.6,2565.9,2.72808]
[1723408131218,0.07784779,2566.7,2566.0,2.72797]
[1723408131520,9.7463,2566.8,2566.2,2.72768]
[1723408131697,22.0,2567.0,2566.3,0.07792297]
[1723408131899,22.0,2567.0,2566.4,2.72746]
[1723408132222,22.0,2567.0,2566.5,3.07791458]
[1723408132223,20.0,2567.0,2566.5,3.07791458]
[1723408132510,20.0,2567.0,2566.6,2.72726]
[1723408132715,20.0,2567.0,2566.7,3.0]
[1723408132917,22.272679,2567.0,2566.5,3.0]
[1723408133089,22.272679,2567.0,2565.2,2.92876]
[1723408133090,12.47351,2566.8,2566.3,3.0]
[1723408133474,24.999669,2567.0,2566.4,2.72748]
[1723408133695,22.272679,2567.0,2566.4,2.72748]
[1723408134071,22.272679,2567.0,2566.4,5.45496]
[1723408134278,0.91726076,2566.9,2566.3,3.0]
[1723408134912,2.72724,2566.7,2566.3,3.0]
[1723408135213,0.91726076,2566.9,2565.7,13.739]
[1723408135214,0.91726076,2566.9,2566.1,5.72785]
[1723408135417,0.91726076,2566.9,2565.5,2.72847]
[1723408135418,9.7463,2566.8,2565.5,2.72847]
[1723408135586,2.728,2566.0,2565.4,2.72861]
[1723408135775,2.72793,2566.1,2565.4,2.72861]
[1723408135980,2.80577779,2566.1,2565.4,2.72861]
[1723408136204,13.721543,2566.2,2565.1,3.816]
[1723408136205,13.721543,2566.2,2565.5,2.7284]
[1723408136477,13.721543,2566.2,2565.6,2.7284]
[1723408137087,9.7463,2566.5,2566.1,2.72785]
[1723408137582,2.7272,2566.8,2566.2,2.80567682]
[1723408137783,2.7272,2566.8,2566.3,0.07792636]
[1723408138089,9.7463,2567.2,2566.3,3.0]
[1723408138278,9.7463,2567.2,2566.6,2.72724]
[1723408138477,2.7265,2567.4,2566.6,2.72724]
[1723408138677,2.72673,2567.2,2566.6,2.72724]
[1723408138908,2.72673,2567.2,2566.4,6.57752]
[1723408138909,2.72681,2567.1,2566.4,6.57752]
[1723408139112,2.72681,2567.1,2566.4,9.30501]
[1723408139314,2.72673,2567.2,2566.5,2.72744]
[1723408139511,2.72684,2567.1,2566.5,2.72743]
[1723408139818,12.47334,2566.9,2566.4,3.0]
[1723408140025,12.47334,2566.9,2566.3,3.0]
[1723408140195,12.47333,2566.9,2566.3,3.0]
[1723408140517,16.07737752,2566.9,2566.3,2.72763]
[1723408140826,12.47333,2566.9,2566.2,2.72766]
[1723408140992,2.7273,2566.7,2566.0,5.7279]
[1723408141390,0.07784779,2566.8,2566.2,2.72775]
[1723408141605,2.72728,2566.7,2566.0,5.72792]
[1723408141807,3.98243278,2566.7,2566.0,5.72797]
[1723408142024,3.98243278,2566.7,2566.0,8.45588]
[1723408142227,0.07784779,2566.8,2566.0,8.45588]
[1723408142228,2.80503779,2566.8,2566.2,2.72776]
[1723408142529,2.80503779,2566.8,2566.0,5.72791]
[1723408142530,0.07784779,2566.7,2566.0,3.0]
[1723408142835,0.07784779,2566.7,2565.4,2.72861]
[1723408142836,9.7048,2566.1,2565.4,2.72861]
[1723408143128,9.7048,2566.4,2566.0,2.72789]
[1723408143497,15.15898,2566.9,2566.3,2.72766]
[1723408143702,12.43187,2566.9,2566.1,5.53356693]
[1723408143999,15.947768,2566.9,2566.1,2.80575693]
[1723408144406,15.947768,2566.9,2566.2,2.72768]
[1723408144599,15.947768,2566.9,2566.3,0.07792055]
[1723408144802,15.947768,2566.9,2566.3,2.80557055]
[1723408145195,2.72734,2566.6,2566.1,2.72778]
[1723408145429,20.0,2567.0,2566.2,9.91882241]
[1723408145625,20.0,2567.0,2566.5,2.72736]
[1723408146205,20.0,2567.0,2566.5,2.80527223]
[1723408146434,20.0,2567.0,2566.7,2.72717]
[1723408146731,20.0,2567.0,2566.3,3.0]
[1723408146732,20.0,2567.0,2566.9,2.72702]
[1723408146883,20.0,2567.0,2566.8,5.53207892]
[1723408147086,20.0,2567.0,2566.8,0.63111681]
[1723408147284,22.72698,2567.0,2566.5,3.0]
[1723408147490,2.72715,2566.8,2566.3,3.0]
[1723408147695,20.0,2567.0,2566.3,3.0]
[1723408147935,20.0,2567.0,2566.4,2.72747]
[1723408148091,20.0,2567.0,2566.8,2.72704]
[1723408148317,20.0,2567.0,2566.5,3.0]
[1723408148523,20.0,2567.0,2566.6,2.72725]
[1723408149058,20.0,2567.0,2566.7,2.72716]
[1723408149227,20.0,2567.0,2566.5,3.0]
[1723408149427,2.7272,2566.8,2566.2,2.7277]
[1723408149754,2.7272,2566.8,2566.3,3.0]
[1723408149967,5.45441,2566.8,2566.3,3.0]
[1723408150124,2.72741,2566.6,2566.0,2.72791]
[1723408150324,2.72741,2566.6,2566.0,3.000701]
[1723408151115,9.3936,2566.7,2566.1,2.72785]
[1723408151326,9.3936,2566.7,2566.0,3.000701]
[1723408151327,2.72735,2566.6,2566.0,3.000701]
[1723408151554,2.72735,2566.6,2566.1,3.0]
[1723408151769,9.3936,2566.7,2566.1,3.0]
[1723408151770,9.3936,2566.7,2566.1,6.3278901]
[1723408152089,22.72697,2567.0,2566.1,6.3278901]
[1723408152090,32.32707,2567.0,2566.3,5.45514]
[1723408152271,29.6001,2567.0,2566.1,3.6000701]
[1723408152439,2.72719,2566.8,2566.1,2.7278]
[1723408152635,2.72719,2566.8,2566.2,3.0]
[1723408153019,2.72719,2566.8,2566.2,5.7277]
[1723408153258,32.32704,2567.0,2566.3,2.80551332]
[1723408153468,2.72703,2566.9,2566.4,2.72754]
[1723408153633,2.72703,2566.9,2566.2,8.45536]
[1723408153819,2.72703,2566.9,2566.2,5.72767]
[1723408154222,35.559744,2567.0,2566.2,5.72767]
[1723408154474,32.32704,2567.0,2566.4,2.72754]
[1723408154773,35.05402,2567.0,2566.4,2.72749]
[1723408154923,0.07784779,2566.9,2566.0,2.72793]
[1723408155131,2.72742,2566.6,2566.1,5.72786]
[1723408155660,0.07784779,2566.7,2566.1,5.72786]
[1723408155661,2.80514779,2566.7,2566.1,5.72786]
[1723408156760,0.07784779,2566.7,2566.1,3.0]
[1723408156972,2.72729,2566.7,2566.1,5.72786]
[1723408157339,29.6001,2567.0,2566.4,2.72748]
[1723408157645,20.0,2567.0,2566.3,9.0253]
[1723408157854,20.0,2567.0,2566.6,2.72728]
[1723408158155,20.0,2567.0,2566.4,3.07791124]
[1723408158156,20.0,2567.0,2566.9,2.72702]
[1723408158875,20.0,2567.0,2566.4,9.54353]
[1723408158876,22.72692,2567.0,2566.4,3.0]
[1723408159038,22.72692,2567.0,2566.0,3.816]
[1723408159039,20.0,2567.0,2566.3,3.0]
[1723408159240,20.0,2567.0,2566.7,2.72721]
[1723408159548,20.0,2567.0,2566.9,2.72702]
[1723408159951,20.0,2567.0,2566.7,2.72715]
[1723408160153,20.0,2567.0,2566.4,7.366]
[1723408160366,20.0,2567.0,2566.7,2.72715]
[1723408160567,20.0,2567.0,2566.7,2.999865]
[1723408160878,20.0,2567.0,2566.5,2.72737]
[1723408161076,20.0,2567.0,2566.8,2.72704]
[1723408161379,20.0,2567.0,2566.9,2.80492616]
[1723408162481,20.0,2567.0,2566.9,5.53194616]
[1723408162694,20.0,2567.0,2566.9,18.02934]
[1723408162842,20.0,2567.0,2566.9,22.94868438]
[1723408163560,18.0522,2567.0,2566.9,26.34956097]
[1723408163783,18.0522,2567.0,2566.9,20.89552097]
[1723408163983,18.0522,2567.0,2566.9,5.19232438]
[1723408164212,18.0522,2567.0,2566.7,2.72716]
[1723408164368,18.0522,2567.0,2566.9,2.72702]
[1723408164692,18.0522,2567.0,2566.9,9.00404]
[1723408165303,18.0522,2567.0,2566.9,11.73106]
[1723408165609,18.0522,2567.0,2566.9,21.929466]
[1723408165757,18.0522,2567.0,2566.9,24.656486]
[1723408166094,18.0522,2567.0,2566.9,27.77621836]
[1723408166398,14.1566,2567.0,2566.9,25.33033129]
[1723408166607,14.1566,2567.0,2566.9,27.7749121]
[1723408166764,6.9384854,2567.0,2566.9,29.07351042]
[1723408167148,9.6001,2568.5,2568.1,2.7257]
[1723408167453,9.6001,2568.5,2567.9,2.72587]
[1723408167656,9.6001,2568.5,2568.0,3.27578]
[1723408167859,9.6001,2568.5,2568.1,2.72568]
[1723408168174,9.6001,2568.5,2568.1,3.053248]
[1723408168370,9.6001,2568.5,2568.2,2.72563]
[1723408168572,9.6001,2568.5,2568.1,3.053248]
[1723408168894,9.6001,2568.8,2568.3,2.72547]
[1723408169094,9.6001,2568.8,2568.4,2.80327704]
[1723408169306,9.6001,2568.8,2568.4,0.07785704]
[1723408169802,2.72475,2569.1,2568.4,0.07785704]
[1723408169803,9.6001,2569.1,2568.7,2.72504]
[1723408170015,9.6001,2569.5,2568.8,0.62784402]
[1723408170363,9.6001,2569.5,2568.9,5.44972]
[1723408170563,9.6001,2569.5,2569.0,0.62783716]
[1723408171184,9.6001,2569.5,2569.0,3.27476]
[1723408171460,2.72389,2569.9,2569.0,0.55]
[1723408171733,9.0343,2570.0,2569.0,0.55]
[1723408171734,9.0343,2570.0,2569.4,2.72428]
[1723408171893,9.0343,2570.0,2569.5,0.55]
[1723408172223,9.0343,2570.0,2569.0,3.0]
[1723408172224,2.72405,2569.7,2569.0,3.0]
[1723408172523,9.0343,2570.0,2569.1,0.55]
[1723408172819,2.72409,2569.7,2569.1,3.2746]
[1723408173123,2.72389,2569.9,2569.1,3.2746]
[1723408173124,2.72416,2569.6,2569.1,0.55]
[1723408173411,2.72448,2569.3,2569.0,0.55]
[1723408173718,2.72448,2569.3,2568.8,3.0]
[1723408173719,9.0343,2569.2,2568.8,3.0]
[1723408174076,9.0343,2569.2,2568.3,2.72544]
[1723408174319,2.72518,2568.7,2567.9,2.72592]
[1723408174488,2.72518,2568.7,2568.0,2.72584]
[1723408174489,9.0343,2568.6,2568.0,2.72584]
[1723408175174,9.0343,2568.6,2568.1,2.72572]
[1723408175375,9.0343,2568.6,2568.2,2.72562]
[1723408175610,9.0343,2568.6,2568.3,3.0]
[1723408175785,9.0343,2568.6,2568.3,5.72553]
[1723408175991,2.72495,2568.9,2568.3,5.72553]
[1723408175992,9.0343,2568.9,2568.3,5.72547]
[1723408176189,9.0343,2568.9,2568.4,3.27533]
[1723408176878,2.72527,2568.6,2567.9,1.210032]
[1723408177100,5.45057,2568.6,2567.9,1.210032]
[1723408177286,2.72506,2568.8,2568.1,2.72574]
[1723408177595,2.72522,2568.6,2567.9,5.45177]
[1723408177804,2.72522,2568.6,2567.9,2.72588]
[1723408178311,2.72522,2568.6,2567.4,12.29295409]
[1723408178312,2.72522,2568.6,2567.7,2.72612]
[1723408178516,9.0343,2568.3,2567.8,3.0]
[1723408178673,9.0343,2568.3,2567.5,2.72637]
[1723408178674,2.72571,2568.2,2567.5,2.72637]
[1723408178879,2.72581,2568.1,2567.5,2.72637]
[1723408179119,2.72571,2568.2,2567.5,2.72637]
[1723408179300,2.72576,2568.1,2567.5,2.72637]
[1723408179509,2.72575,2568.1,2567.5,2.72637]
[1723408180411,2.72571,2568.2,2567.5,2.72637]
[1723408180709,0.07784779,2568.2,2567.2,3.816]
[1723408180910,2.72602,2567.9,2567.3,2.72653]
[1723408181127,5.45161,2568.1,2566.9,2.72699]
[1723408181276,2.72585,2568.0,2567.4,2.72642]
[1723408181480,2.72585,2568.0,2567.5,0.55]
[1723408181976,2.72597,2567.9,2567.5,0.55]
[1723408182315,2.72597,2567.9,2567.3,3.27653]
[1723408182519,2.72597,2567.9,2566.8,2.72706]
[1723408182520,2.72657,2567.4,2566.8,2.72706]
[1723408182815,2.72661,2567.3,2566.6,2.7273]
[1723408183016,9.0343,2567.0,2566.6,2.72725]
[1723408183174,9.0343,2567.0,2566.6,2.999975]
[1723408183891,9.0343,2567.0,2566.6,0.272725]
[1723408184129,9.0343,2567.0,2566.6,5.999985]
[1723408184328,9.0343,2567.0,2566.7,0.55]
[1723408184482,11.76091,2567.3,2566.7,0.55]
[1723408184878,14.48758,2567.3,2566.7,0.55]
[1723408185425,11.76091,2567.3,2566.7,0.55]
[1723408185723,2.72671,2567.2,2566.7,3.9049985]
[1723408185940,2.72682,2567.1,2566.7,3.9049985]
[1723408186151,2.72682,2567.1,2566.8,3.0]
[1723408186358,2.72682,2567.1,2566.7,0.9049985]
[1723408186945,2.72671,2567.2,2566.7,0.9049985]
[1723408187541,14.48757,2567.3,2566.8,0.66323285]
[1723408187725,14.48758,2567.3,2566.8,0.66323285]
[1723408187931,2.72676,2567.2,2566.8,0.66323285]
[1723408188451,2.72681,2567.1,2566.8,0.66323285]
[1723408188632,11.76091,2567.3,2566.8,0.66323285]
[1723408189241,2.72673,2567.2,2566.8,0.66323285]
[1723408190044,2.72673,2567.2,2566.7,0.55]
[1723408190246,5.45352,2567.2,2566.6,0.55]
[1723408190451,2.72673,2567.2,2566.6,0.55]
[1723408190665,5.53137779,2567.2,2566.6,0.55]
[1723408190947,2.72681,2567.1,2566.7,0.627743]
[1723408191523,11.76096,2567.3,2566.7,0.627743]
[1723408191724,2.72671,2567.2,2566.7,3.627743]
[1723408191919,2.72671,2567.2,2566.8,0.6905023]
[1723408192845,9.521,2566.8,2565.5,9.6411]
[1723408193051,2.72767,2566.3,2565.6,2.72834]
[1723408193223,12.24879,2566.2,2565.7,1.236944]
[1723408193426,12.24879,2566.2,2565.2,2.72874]
[1723408193427,2.72814,2565.9,2565.2,2.72874]
[1723408193766,9.521,2566.2,2565.2,2.72874]
[1723408193767,2.72819,2565.8,2565.2,2.72874]
[1723408193922,2.80590779,2566.0,2565.3,2.72871]
[1723408194121,2.72825,2565.8,2565.4,0.07794943]
[1723408194431,0.07784779,2566.1,2564.8,2.72918]
[1723408194432,2.72855,2565.5,2564.8,2.72918]
[1723408194737,9.521,2565.4,2564.8,2.72918]
[1723408195116,9.521,2565.4,2564.9,0.07795996]
[1723408195470,9.521,2565.4,2564.9,0.280714]
[1723408195750,9.521,2565.4,2564.9,3.009854]
[1723408196440,9.521,2565.4,2564.9,0.280714]
[1723408196623,2.72874,2565.3,2564.6,2.72942]
[1723408197031,2.72874,2565.3,2564.6,5.45881]
[1723408197347,5.45754,2565.3,2564.6,2.72939]
[1723408197553,2.72874,2565.3,2564.7,2.72935]
[1723408197716,2.72874,2565.3,2564.8,0.545874]
[1723408198119,2.72874,2565.3,2564.9,0.55]
[1723408198628,12.24963,2565.4,2564.9,0.55]
[1723408198852,9.521,2565.4,2564.9,0.55]
[1723408199150,12.24964,2565.4,2564.9,1.24030183]
[1723408199355,9.521,2565.4,2564.9,1.24030183]
[1723408199656,12.24962,2565.4,2564.9,1.24030183]
[1723408200011,9.521,2565.4,2564.9,3.96944183]
[1723408200212,9.521,2566.1,2565.0,0.66986218]
[1723408200436,9.521,2566.1,2565.3,2.72863]
[1723408200437,12.24888,2566.1,2565.3,2.72863]
[1723408200656,2.72815,2565.9,2565.3,2.72863]
[1723408200838,2.7282,2565.8,2565.4,0.55]
[1723408201046,2.72815,2565.9,2565.4,0.55]
[1723408201233,12.24892,2566.1,2565.4,0.55]
[1723408201434,0.07784779,2566.0,2565.2,3.0]
[1723408201635,12.24942,2565.6,2565.1,3.0]
[1723408201840,12.24942,2565.6,2565.0,0.66986218]
[1723408201841,12.24942,2565.6,2565.0,3.66986218]
[1723408202029,0.07784779,2565.5,2565.0,3.66986218]
[1723408202369,9.521,2565.9,2565.0,3.66986218]
[1723408202659,2.72794,2566.1,2565.3,2.72867]
[1723408202844,2.72794,2566.1,2565.4,2.72855]
[1723408203022,9.521,2566.2,2565.5,0.62794493]
[1723408203223,9.521,2566.2,2565.5,3.27841]
[1723408203419,9.521,2566.2,2565.7,2.72822]
[1723408203624,12.24878,2566.2,2565.8,0.55]
[1723408203858,2.728,2566.0,2565.1,6.1649064]
[1723408204073,0.07784779,2566.1,2564.4,2.72964]
[1723408204074,2.72847,2565.6,2564.9,2.72906]
[1723408204222,2.72847,2565.6,2565.0,2.72894]
[1723408204725,12.24924,2565.8,2565.1,2.72891]
[1723408204938,2.7283,2565.7,2565.1,2.72886]
[1723408205227,2.80619779,2565.7,2565.1,0.545797]
[1723408205447,2.72835,2565.7,2565.1,0.545797]
[1723408205645,2.72835,2565.7,2565.1,3.274717]
[1723408205857,0.07784779,2565.7,2565.1,0.545797]
[1723408206023,3.76606257,2565.7,2565.0,5.72898]
[1723408206220,2.72833,2565.7,2565.1,2.72887]
[1723408206425,0.07784779,2565.7,2564.8,2.72919]
[1723408206622,0.07784779,2565.7,2564.9,0.55]
[1723408206623,2.72859,2565.5,2564.9,0.55]
[1723408206923,2.72859,2565.5,2564.3,12.37084]
[1723408206924,12.2498,2565.3,2564.5,2.72952]
[1723408207362,9.521,2565.3,2564.7,2.7293]
[1723408207863,9.521,2565.3,2564.8,2.72924]
[1723408208024,9.521,2565.3,2564.7,5.45859]
[1723408208363,9.521,2565.3,2564.7,6.304449]
[1723408208975,9.521,2565.3,2564.8,2.72923]
[1723408209146,9.521,2565.3,2564.7,3.575149]
[1723408209753,12.24975,2565.3,2564.7,3.575149]
[1723408210739,2.72883,2565.2,2564.7,3.575149]
[1723408210939,2.72883,2565.2,2563.6,2.73047]
[1723408210940,2.72956,2564.6,2563.8,0.61068506]
[1723408211140,0.07784779,2565.1,2563.4,12.14513]
[1723408211141,9.716,2564.5,2564.4,2.72968]
[1723408211371,9.716,2564.5,2564.4,0.272968]
[1723408211565,9.716,2564.5,2564.3,2.72971]
[1723408211742,9.716,2564.5,2563.9,2.73012]
[1723408212068,9.716,2564.5,2563.7,2.73034]
[1723408212377,0.07784779,2564.4,2563.7,2.73034]
[1723408212551,2.73007,2564.1,2563.5,2.7306]
[1723408212752,9.79384779,2564.0,2563.4,2.73065]